Workbook

Sheet Документ
D2: Приложение № 3 к постановлению от .10.2018г. №
A3: Ведомственная структура расходов бюджета МО Красноуфимский округ
A5: Наименование главного распорядителя бюджетных средств | B5: Код главного распоря- дителя | C5: Код раздела, подраз- дела | D5: Код целевой статьи | E5: Код вида расхо- дов | L5: Утверждено на 2018 год, в рублях | U5: Исполнено за 9 месяцев 2018 г.
S6: Сумма на 2019 год | T6: Сумма на 2020 год | U6: в рублях | V6: в %
A7: Исполнительно-распорядительный орган местного самоуправления - Администрация Муниципального образования Красноуфимский округ | B7: 901 | C7: 0000 | D7: 0000000000 | E7: 000 | F7: 000 | L7: 351791401.9 | M7: 351791401.9 | N7: 0 | O7: 351791401.9 | P7: 0 | Q7: 351791401.9 | R7: 0 | S7: 291378420 | T7: 264332100 | U7: 191478467.7 | V7: =U7/L7*100 -> 54.42954735
A8: ОБЩЕГОСУДАРСТВЕННЫЕ ВОПРОСЫ | B8: 901 | C8: 0100 | D8: 0000000000 | E8: 000 | F8: 000 | L8: 94733006.3 | M8: 94733006.3 | N8: 0 | O8: 94733006.3 | P8: 0 | Q8: 94733006.3 | R8: 0 | S8: 79624700 | T8: 79636200 | U8: 53275478.98 | V8: =U8/L8*100 -> 56.23750482
A9: Функционирование высшего должностного лица субъекта Российской Федерации и муниципального образования | B9: 901 | C9: 0102 | D9: 0000000000 | E9: 000 | F9: 000 | L9: 2166700 | M9: 2166700 | N9: 0 | O9: 2166700 | P9: 0 | Q9: 2166700 | R9: 0 | S9: 2166700 | T9: 2166700 | U9: 1366294.8 | V9: 63.05878986
A10: Непрограммные направления расходов | B10: 901 | C10: 0102 | D10: 7000000000 | E10: 000 | F10: 000 | L10: 2166700 | M10: 2166700 | N10: 0 | O10: 2166700 | P10: 0 | Q10: 2166700 | R10: 0 | S10: 2166700 | T10: 2166700 | U10: 1366294.8 | V10: 63.05878986
A11: Функционирование высшего должностного лица субъекта РФ и муниципального образования | B11: 901 | C11: 0102 | D11: 7000521000 | E11: 000 | F11: 000 | L11: 2166700 | M11: 2166700 | N11: 0 | O11: 2166700 | P11: 0 | Q11: 2166700 | R11: 0 | S11: 2166700 | T11: 2166700 | U11: 1366294.8 | V11: 63.05878986
A12: Расходы на выплаты персоналу государственных (муниципальных) органов | B12: 901 | C12: 0102 | D12: 7000521000 | E12: 120 | F12: 000 | L12: 2166700 | M12: 2166700 | N12: 0 | O12: 2166700 | P12: 0 | Q12: 2166700 | R12: 0 | S12: 2166700 | T12: 2166700 | U12: 1366294.8 | V12: 63.05878986
A13: Функционирование Правительства Российской Федерации, высших исполнительных органов государственной власти субъектов Российской Федерации, местных администраций | B13: 901 | C13: 0104 | D13: 0000000000 | E13: 000 | F13: 000 | L13: 32413815.66 | M13: 32413815.66 | N13: 0 | O13: 32413815.66 | P13: 0 | Q13: 32413815.66 | R13: 0 | S13: 32375300 | T13: 32375300 | U13: 19813431.56 | V13: 61.12650164
A14: Муниципальная программа МО Красноуфимский округ "Совершенствование муниципального управления в МО Красноуфимский округ до 2020 года" | B14: 901 | C14: 0104 | D14: 0800000000 | E14: 000 | F14: 000 | L14: 32413815.66 | M14: 32413815.66 | N14: 0 | O14: 32413815.66 | P14: 0 | Q14: 32413815.66 | R14: 0 | S14: 32375300 | T14: 32375300 | U14: 19813431.56 | V14: 61.12650164
A15: Подпрограмма "Развитие и обеспечение эффективности деятельности администрации Муниципального образования Красноуфимский округ до 2020 года" | B15: 901 | C15: 0104 | D15: 0810000000 | E15: 000 | F15: 000 | L15: 32373315.66 | M15: 32373315.66 | N15: 0 | O15: 32373315.66 | P15: 0 | Q15: 32373315.66 | R15: 0 | S15: 32334800 | T15: 32334800 | U15: 19797431.56 | V15: 61.15354932
A16: Обеспечение деятельности органов местного самоуправления (центральный аппарат) | B16: 901 | C16: 0104 | D16: 0810121000 | E16: 000 | F16: 000 | L16: 12344948.66 | M16: 12344948.66 | N16: 0 | O16: 12344948.66 | P16: 0 | Q16: 12344948.66 | R16: 0 | S16: 12345433 | T16: 12345433 | U16: 8272483.74 | V16: 67.01108257
A17: Расходы на выплаты персоналу государственных (муниципальных) органов | B17: 901 | C17: 0104 | D17: 0810121000 | E17: 120 | F17: 000 | L17: 11418713 | M17: 11418713 | N17: 0 | O17: 11418713 | P17: 0 | Q17: 11418713 | R17: 0 | S17: 11418713 | T17: 11418713 | U17: 7700250 | V17: 67.43535808
A18: Иные закупки товаров, работ и услуг для обеспечения государственных (муниципальных) нужд | B18: 901 | C18: 0104 | D18: 0810121000 | E18: 240 | F18: 000 | L18: 924235.66 | M18: 924235.66 | N18: 0 | O18: 924235.66 | P18: 0 | Q18: 924235.66 | R18: 0 | S18: 924720 | T18: 924720 | U18: 570933.74 | V18: 61.77361086
A19: Уплата налогов, сборов и иных платежей | B19: 901 | C19: 0104 | D19: 0810121000 | E19: 850 | F19: 000 | L19: 2000 | M19: 2000 | N19: 0 | O19: 2000 | P19: 0 | Q19: 2000 | R19: 0 | S19: 2000 | T19: 2000 | U19: 1300 | V19: 65
A20: Обеспечение деятельности территориальных органов местного самоуправления | B20: 901 | C20: 0104 | D20: 0810221000 | E20: 000 | F20: 000 | L20: 18320000 | M20: 18320000 | N20: 0 | O20: 18320000 | P20: 0 | Q20: 18320000 | R20: 0 | S20: 18320000 | T20: 18320000 | U20: 10526832.76 | V20: 57.46087751
A21: Расходы на выплаты персоналу государственных (муниципальных) органов | B21: 901 | C21: 0104 | D21: 0810221000 | E21: 120 | F21: 000 | L21: 17591017 | M21: 17591017 | N21: 0 | O21: 17591017 | P21: 0 | Q21: 17591017 | R21: 0 | S21: 17617089 | T21: 17617089 | U21: 10003082.35 | V21: 56.86471879
A22: Иные закупки товаров, работ и услуг для обеспечения государственных (муниципальных) нужд | B22: 901 | C22: 0104 | D22: 0810221000 | E22: 240 | F22: 000 | L22: 728783 | M22: 728783 | N22: 0 | O22: 728783 | P22: 0 | Q22: 728783 | R22: 0 | S22: 702911 | T22: 702911 | U22: 523550.41 | V22: 71.83899871
A23: Уплата налогов, сборов и иных платежей | B23: 901 | C23: 0104 | D23: 0810221000 | E23: 850 | F23: 000 | L23: 200 | M23: 200 | N23: 0 | O23: 200 | P23: 0 | Q23: 200 | R23: 0 | S23: 0 | T23: 0 | U23: 200 | V23: 100
A24: Обеспечение деятельности аппарата управления (прочий персонал) | B24: 901 | C24: 0104 | D24: 081П121000 | E24: 000 | F24: 000 | L24: 1669367 | M24: 1669367 | N24: 0 | O24: 1669367 | P24: 0 | Q24: 1669367 | R24: 0 | S24: 1669367 | T24: 1669367 | U24: 985227.96 | V24: 59.01805654
A25: Расходы на выплаты персоналу государственных (муниципальных) органов | B25: 901 | C25: 0104 | D25: 081П121000 | E25: 120 | F25: 000 | L25: 1669367 | M25: 1669367 | N25: 0 | O25: 1669367 | P25: 0 | Q25: 1669367 | R25: 0 | S25: 1669367 | T25: 1669367 | U25: 985227.96 | V25: 59.01805654
A26: Обеспечение оплаты труда работников аппарата управления (прочий персонал) в размере не ниже минимального размера оплаты труда в 2018 году | B26: 901 | C26: 0104 | D26: 081П140600 | E26: 000 | F26: 000 | L26: 39000 | M26: 39000 | N26: 0 | O26: 39000 | P26: 0 | Q26: 39000 | R26: 0 | S26: 0 | T26: 0 | U26: 12887.1 | V26: 33.04384615
A27: Расходы на выплаты персоналу государственных (муниципальных) органов | B27: 901 | C27: 0104 | D27: 081П140600 | E27: 120 | F27: 000 | L27: 39000 | M27: 39000 | N27: 0 | O27: 39000 | P27: 0 | Q27: 39000 | R27: 0 | S27: 0 | T27: 0 | U27: 12887.1 | V27: 33.04384615
A28: Подпрограмма "Развитие муниципальной службы в Муниципальном образовании Красноуфимский округ до 2020 года" | B28: 901 | C28: 0104 | D28: 0830000000 | E28: 000 | F28: 000 | L28: 40500 | M28: 40500 | N28: 0 | O28: 40500 | P28: 0 | Q28: 40500 | R28: 0 | S28: 40500 | T28: 40500 | U28: 16000 | V28: 39.50617284
A29: Обеспечение повышения квалификации муниципальных служащих | B29: 901 | C29: 0104 | D29: 0830121000 | E29: 000 | F29: 000 | L29: 40500 | M29: 40500 | N29: 0 | O29: 40500 | P29: 0 | Q29: 40500 | R29: 0 | S29: 40500 | T29: 40500 | U29: 16000 | V29: 39.50617284
A30: Иные закупки товаров, работ и услуг для обеспечения государственных (муниципальных) нужд | B30: 901 | C30: 0104 | D30: 0830121000 | E30: 240 | F30: 000 | L30: 40500 | M30: 40500 | N30: 0 | O30: 40500 | P30: 0 | Q30: 40500 | R30: 0 | S30: 40500 | T30: 40500 | U30: 16000 | V30: 39.50617284
A31: Судебная система | B31: 901 | C31: 0105 | D31: 0000000000 | E31: 000 | F31: 000 | L31: 12800 | M31: 12800 | N31: 0 | O31: 12800 | P31: 0 | Q31: 12800 | R31: 0 | S31: 900 | T31: 1400 | U31: 2341.65 | V31: 18.29414063
A32: Муниципальная программа МО Красноуфимский округ "Совершенствование муниципального управления в МО Красноуфимский округ до 2020 года" | B32: 901 | C32: 0105 | D32: 0800000000 | E32: 000 | F32: 000 | L32: 12800 | M32: 12800 | N32: 0 | O32: 12800 | P32: 0 | Q32: 12800 | R32: 0 | S32: 900 | T32: 1400 | U32: 2341.65 | V32: 18.29414063
A33: Подпрограмма "Содействие реализации муниципальных функций, связанных с общегосударственным управлением до 2020 года" | B33: 901 | C33: 0105 | D33: 0820000000 | E33: 000 | F33: 000 | L33: 12800 | M33: 12800 | N33: 0 | O33: 12800 | P33: 0 | Q33: 12800 | R33: 0 | S33: 900 | T33: 1400 | U33: 2341.65 | V33: 18.29414063
A34: Расходы на осуществление государственных полномочий по составлению списков кандидатов в присяжные заседатели федеральных судов общей юрисдикции | B34: 901 | C34: 0105 | D34: 0820251200 | E34: 000 | F34: 000 | L34: 12800 | M34: 12800 | N34: 0 | O34: 12800 | P34: 0 | Q34: 12800 | R34: 0 | S34: 900 | T34: 1400 | U34: 2341.65 | V34: 18.29414063
A35: Иные закупки товаров, работ и услуг для обеспечения государственных (муниципальных) нужд | B35: 901 | C35: 0105 | D35: 0820251200 | E35: 240 | F35: 000 | L35: 12800 | M35: 12800 | N35: 0 | O35: 12800 | P35: 0 | Q35: 12800 | R35: 0 | S35: 900 | T35: 1400 | U35: 2341.65 | V35: 18.29414063
A36: Резервные фонды | B36: 901 | C36: 0111 | D36: 0000000000 | E36: 000 | F36: 000 | L36: 80000 | M36: 80000 | N36: 0 | O36: 80000 | P36: 0 | Q36: 80000 | R36: 0 | S36: 180000 | T36: 180000 | U36: 0 | V36: 0
A37: Непрограммные направления расходов | B37: 901 | C37: 0111 | D37: 7000000000 | E37: 000 | F37: 000 | L37: 80000 | M37: 80000 | N37: 0 | O37: 80000 | P37: 0 | Q37: 80000 | R37: 0 | S37: 180000 | T37: 180000 | U37: 0 | V37: 0
A38: Резервные фонды местных администраций | B38: 901 | C38: 0111 | D38: 7000021000 | E38: 000 | F38: 000 | L38: 80000 | M38: 80000 | N38: 0 | O38: 80000 | P38: 0 | Q38: 80000 | R38: 0 | S38: 180000 | T38: 180000 | U38: 0 | V38: 0
A39: Резервные средства | B39: 901 | C39: 0111 | D39: 7000021000 | E39: 870 | F39: 000 | L39: 80000 | M39: 80000 | N39: 0 | O39: 80000 | P39: 0 | Q39: 80000 | R39: 0 | S39: 180000 | T39: 180000 | U39: 0 | V39: 0
A40: Другие общегосударственные вопросы | B40: 901 | C40: 0113 | D40: 0000000000 | E40: 000 | F40: 000 | L40: 60059690.64 | M40: 60059690.64 | N40: 0 | O40: 60059690.64 | P40: 0 | Q40: 60059690.64 | R40: 0 | S40: 44901800 | T40: 44912800 | U40: 32093410.97 | V40: 53.43585794
A41: Муниципальная программа МО Красноуфимский округ "Совершенствование муниципального управления в МО Красноуфимский округ до 2020 года" | B41: 901 | C41: 0113 | D41: 0800000000 | E41: 000 | F41: 000 | L41: 52908333.82 | M41: 52908333.82 | N41: 0 | O41: 52908333.82 | P41: 0 | Q41: 52908333.82 | R41: 0 | S41: 41529300 | T41: 41540300 | U41: 29458385.85 | V41: 55.67815828
A42: Подпрограмма "Содействие реализации муниципальных функций, связанных с общегосударственным управлением до 2020 года" | B42: 901 | C42: 0113 | D42: 0820000000 | E42: 000 | F42: 000 | L42: 746236 | M42: 746236 | N42: 0 | O42: 746236 | P42: 0 | Q42: 746236 | R42: 0 | S42: 765300 | T42: 765300 | U42: 276087.39 | V42: 36.99732926
A43: Содержание и ремонт объектов недвижимости, находящихся в муниципальной собственности | B43: 901 | C43: 0113 | D43: 0820121000 | E43: 000 | F43: 000 | L43: 174736 | M43: 174736 | N43: 0 | O43: 174736 | P43: 0 | Q43: 174736 | R43: 0 | S43: 163800 | T43: 163800 | U43: 131761.6 | V43: 75.40609834
A44: Иные закупки товаров, работ и услуг для обеспечения государственных (муниципальных) нужд | B44: 901 | C44: 0113 | D44: 0820121000 | E44: 240 | F44: 000 | L44: 174736 | M44: 174736 | N44: 0 | O44: 174736 | P44: 0 | Q44: 174736 | R44: 0 | S44: 163800 | T44: 163800 | U44: 131761.6 | V44: 75.40609834
A45: Прочие выплаты по обязательствам Муниципального образования | B45: 901 | C45: 0113 | D45: 0820122000 | E45: 000 | F45: 000 | L45: 465000 | M45: 465000 | N45: 0 | O45: 465000 | P45: 0 | Q45: 465000 | R45: 0 | S45: 495000 | T45: 495000 | U45: 75674.9 | V45: 16.27417204
A46: Уплата налогов, сборов и иных платежей | B46: 901 | C46: 0113 | D46: 0820122000 | E46: 850 | F46: 000 | L46: 465000 | M46: 465000 | N46: 0 | O46: 465000 | P46: 0 | Q46: 465000 | R46: 0 | S46: 495000 | T46: 495000 | U46: 75674.9 | V46: 16.27417204
A47: Осуществление государственного полномочия по определению перечня должностных лиц, уполномоченных составлять протоколы об админстративных правонарушениях, предусмотренных законом Свердловской области. | B47: 901 | C47: 0113 | D47: 0820341100 | E47: 000 | F47: 000 | L47: 100 | M47: 100 | N47: 0 | O47: 100 | P47: 0 | Q47: 100 | R47: 0 | S47: 100 | T47: 100 | U47: 100 | V47: 100
A48: Иные закупки товаров, работ и услуг для обеспечения государственных (муниципальных) нужд | B48: 901 | C48: 0113 | D48: 0820341100 | E48: 240 | F48: 000 | L48: 100 | M48: 100 | N48: 0 | O48: 100 | P48: 0 | Q48: 100 | R48: 0 | S48: 100 | T48: 100 | U48: 100 | V48: 100
A49: Осуществление государственного полномочия по созданию административных комиссий | B49: 901 | C49: 0113 | D49: 0820441200 | E49: 000 | F49: 000 | L49: 106400 | M49: 106400 | N49: 0 | O49: 106400 | P49: 0 | Q49: 106400 | R49: 0 | S49: 106400 | T49: 106400 | U49: 68550.89 | V49: 64.4275282
A50: Расходы на выплаты персоналу государственных (муниципальных) органов | B50: 901 | C50: 0113 | D50: 0820441200 | E50: 120 | F50: 000 | L50: 96525 | M50: 96525 | N50: 0 | O50: 96525 | P50: 0 | Q50: 96525 | R50: 0 | S50: 96525 | T50: 96525 | U50: 67650.89 | V50: 70.08639213
A51: Иные закупки товаров, работ и услуг для обеспечения государственных (муниципальных) нужд | B51: 901 | C51: 0113 | D51: 0820441200 | E51: 240 | F51: 000 | L51: 9875 | M51: 9875 | N51: 0 | O51: 9875 | P51: 0 | Q51: 9875 | R51: 0 | S51: 9875 | T51: 9875 | U51: 900 | V51: 9.113924051
A52: Подпрограмма "Обеспечение деятельности по комплектованию, учету, хранению и использованию архивных документов, хранящихся в архивном отделе администрации МО Красноуфимский округ до 2020 года" | B52: 901 | C52: 0113 | D52: 0840000000 | E52: 000 | F52: 000 | L52: 254000 | M52: 254000 | N52: 0 | O52: 254000 | P52: 0 | Q52: 254000 | R52: 0 | S52: 264000 | T52: 275000 | U52: 84660 | V52: 33.33070866
A53: Осуществление государственного полномочия по хранению, комплектованию, учету и использованию архивных документов, находящихся в государственной собственности Свердловской области | B53: 901 | C53: 0113 | D53: 0840146100 | E53: 000 | F53: 000 | L53: 254000 | M53: 254000 | N53: 0 | O53: 254000 | P53: 0 | Q53: 254000 | R53: 0 | S53: 264000 | T53: 275000 | U53: 84660 | V53: 33.33070866
A54: Иные закупки товаров, работ и услуг для обеспечения государственных (муниципальных) нужд | B54: 901 | C54: 0113 | D54: 0840146100 | E54: 240 | F54: 000 | L54: 254000 | M54: 254000 | N54: 0 | O54: 254000 | P54: 0 | Q54: 254000 | R54: 0 | S54: 264000 | T54: 275000 | U54: 84660 | V54: 33.33070866
A55: Подпрограмма "Техническое обеспечение реализации муниципальной программы "Совершенствование муниципального управления в МО Красноуфимский округ до 2020 года" | B55: 901 | C55: 0113 | D55: 0860000000 | E55: 000 | F55: 000 | L55: 51908097.82 | M55: 51908097.82 | N55: 0 | O55: 51908097.82 | P55: 0 | Q55: 51908097.82 | R55: 0 | S55: 40500000 | T55: 40500000 | U55: 29097638.46 | V55: 56.05606771
A56: Оказание услуг (выполнение работ) муниципальным учреждением (Центр технического обеспечения) | B56: 901 | C56: 0113 | D56: 0860120000 | E56: 000 | F56: 000 | L56: 41921365.54 | M56: 41921365.54 | N56: 0 | O56: 41921365.54 | P56: 0 | Q56: 41921365.54 | R56: 0 | S56: 40500000 | T56: 40500000 | U56: 28277588.28 | V56: 67.45388161
A57: Расходы на выплаты персоналу казенных учреждений | B57: 901 | C57: 0113 | D57: 0860120000 | E57: 110 | F57: 000 | L57: 29485191 | M57: 29485191 | N57: 0 | O57: 29485191 | P57: 0 | Q57: 29485191 | R57: 0 | S57: 29247036 | T57: 29247036 | U57: 19908840.83 | V57: 67.52149182
A58: Иные закупки товаров, работ и услуг для обеспечения государственных (муниципальных) нужд | B58: 901 | C58: 0113 | D58: 0860120000 | E58: 240 | F58: 000 | L58: 12160413.54 | M58: 12160413.54 | N58: 0 | O58: 12160413.54 | P58: 0 | Q58: 12160413.54 | R58: 0 | S58: 10986203 | T58: 10986203 | U58: 8160838.45 | V58: 67.10987602
A59: Уплата налогов, сборов и иных платежей | B59: 901 | C59: 0113 | D59: 0860120000 | E59: 850 | F59: 000 | L59: 275761 | M59: 275761 | N59: 0 | O59: 275761 | P59: 0 | Q59: 275761 | R59: 0 | S59: 266761 | T59: 266761 | U59: 207909 | V59: 75.39463521
A60: Расходы в сфере общегосударственных вопросов за счет субсидий на стимулирование муниципальных образований | B60: 901 | C60: 0113 | D60: 0860140500 | E60: 000 | F60: 000 | L60: 2248932.28 | M60: 2248932.28 | N60: 0 | O60: 2248932.28 | P60: 0 | Q60: 2248932.28 | R60: 0 | S60: 0 | T60: 0 | U60: 0 | V60: 0
A61: Иные закупки товаров, работ и услуг для обеспечения государственных (муниципальных) нужд | B61: 901 | C61: 0113 | D61: 0860140500 | E61: 240 | F61: 000 | L61: 2248932.28 | M61: 2248932.28 | N61: 0 | O61: 2248932.28 | P61: 0 | Q61: 2248932.28 | R61: 0 | S61: 0 | T61: 0 | U61: 0 | V61: 0
A62: Обеспечение оплаты труда работников МКУ "Центр технического обеспечения" в размере не ниже минимального размера оплаты труда в 2018 году | B62: 901 | C62: 0113 | D62: 0860140600 | E62: 000 | F62: 000 | L62: 7737800 | M62: 7737800 | N62: 0 | O62: 7737800 | P62: 0 | Q62: 7737800 | R62: 0 | S62: 0 | T62: 0 | U62: 820050.18 | V62: 10.59797591
A63: Расходы на выплаты персоналу казенных учреждений | B63: 901 | C63: 0113 | D63: 0860140600 | E63: 110 | F63: 000 | L63: 7737800 | M63: 7737800 | N63: 0 | O63: 7737800 | P63: 0 | Q63: 7737800 | R63: 0 | S63: 0 | T63: 0 | U63: 820050.18 | V63: 10.59797591
A64: Муниципальная программа МО Красноуфимский округ "Развитие и модернизация жилищно-коммунального хозяйства и дорожного хозяйства, повышение энергетической эффективности в МО Красноуфимский округ до 2020 года" | B64: 901 | C64: 0113 | D64: 0900000000 | E64: 000 | F64: 000 | L64: 3747019 | M64: 3747019 | N64: 0 | O64: 3747019 | P64: 0 | Q64: 3747019 | R64: 0 | S64: 3327500 | T64: 3327500 | U64: 2590035.12 | V64: 69.12255102
A65: Подпрограмма "Обеспечение реализации муниципальной программы "Развитие и модернизация жилищно-коммунального хозяйства и дорожного хозяйства, повышение энергетической эффективности в МО Красноуфимский округ до 2020 года" | B65: 901 | C65: 0113 | D65: 0980000000 | E65: 000 | F65: 000 | L65: 3747019 | M65: 3747019 | N65: 0 | O65: 3747019 | P65: 0 | Q65: 3747019 | R65: 0 | S65: 3327500 | T65: 3327500 | U65: 2590035.12 | V65: 69.12255102
A66: Содержание отдела ЖКХ | B66: 901 | C66: 0113 | D66: 098П123000 | E66: 000 | F66: 000 | L66: 3747019 | M66: 3747019 | N66: 0 | O66: 3747019 | P66: 0 | Q66: 3747019 | R66: 0 | S66: 3327500 | T66: 3327500 | U66: 2590035.12 | V66: 69.12255102
A67: Расходы на выплаты персоналу государственных (муниципальных) органов | B67: 901 | C67: 0113 | D67: 098П123000 | E67: 120 | F67: 000 | L67: 2916600 | M67: 2916600 | N67: 0 | O67: 2916600 | P67: 0 | Q67: 2916600 | R67: 0 | S67: 2881100 | T67: 2881100 | U67: 1969319.97 | V67: 67.52108517
A68: Иные закупки товаров, работ и услуг для обеспечения государственных (муниципальных) нужд | B68: 901 | C68: 0113 | D68: 098П123000 | E68: 240 | F68: 000 | L68: 522900 | M68: 522900 | N68: 0 | O68: 522900 | P68: 0 | Q68: 522900 | R68: 0 | S68: 446400 | T68: 446400 | U68: 323196.15 | V68: 61.80840505
A69: Уплата налогов, сборов и иных платежей | B69: 901 | C69: 0113 | D69: 098П123000 | E69: 850 | F69: 000 | L69: 307519 | M69: 307519 | N69: 0 | O69: 307519 | P69: 0 | Q69: 307519 | R69: 0 | S69: 0 | T69: 0 | U69: 297519 | V69: 96.74816841
A70: Муниципальная программа МО Красноуфимский округ "Социальная поддержка и благополучие населения МО Красноуфимский округ до 2024г года" | B70: 901 | C70: 0113 | D70: 1200000000 | E70: 000 | F70: 000 | L70: 45000 | M70: 45000 | N70: 0 | O70: 45000 | P70: 0 | Q70: 45000 | R70: 0 | S70: 45000 | T70: 45000 | U70: 44990 | V70: 99.97777778
A71: Подпрограмма "Организация общественных работ в МО Красноуфимский округ до 2024 года" | B71: 901 | C71: 0113 | D71: 1220000000 | E71: 000 | F71: 000 | L71: 45000 | M71: 45000 | N71: 0 | O71: 45000 | P71: 0 | Q71: 45000 | R71: 0 | S71: 45000 | T71: 45000 | U71: 44990 | V71: 99.97777778
A72: Временное трудоустройство безработных граждан, испытывающих трудности в поиске работы | B72: 901 | C72: 0113 | D72: 1220129000 | E72: 000 | F72: 000 | L72: 45000 | M72: 45000 | N72: 0 | O72: 45000 | P72: 0 | Q72: 45000 | R72: 0 | S72: 45000 | T72: 45000 | U72: 44990 | V72: =U72/L72*100 -> 99.97777778
A73: Иные закупки товаров, работ и услуг для обеспечения государственных (муниципальных) нужд | B73: 901 | C73: 0113 | D73: 1220129000 | E73: 240 | F73: 000 | L73: 45000 | M73: 45000 | N73: 0 | O73: 45000 | P73: 0 | Q73: 45000 | R73: 0 | S73: 45000 | T73: 45000 | U73: 44990 | V73: 99.97777778
A74: Непрограммные направления расходов | B74: 901 | C74: 0113 | D74: 7000000000 | E74: 000 | F74: 000 | L74: 3359337.82 | M74: 3359337.82 | N74: 0 | O74: 3359337.82 | P74: 0 | Q74: 3359337.82 | R74: 0 | S74: 0 | T74: 0 | U74: 0 | V74: 0
A75: Исполнение судебных актов по искам к бюджету округа | B75: 901 | C75: 0113 | D75: 7000029300 | E75: 000 | F75: 000 | L75: 3359337.82 | M75: 3359337.82 | N75: 0 | O75: 3359337.82 | P75: 0 | Q75: 3359337.82 | R75: 0 | S75: 0 | T75: 0 | U75: 0 | V75: 0
A76: Исполнение судебных актов | B76: 901 | C76: 0113 | D76: 7000029300 | E76: 830 | F76: 000 | L76: 3359337.82 | M76: 3359337.82 | N76: 0 | O76: 3359337.82 | P76: 0 | Q76: 3359337.82 | R76: 0 | S76: 0 | T76: 0 | U76: 0 | V76: 0
A77: НАЦИОНАЛЬНАЯ ОБОРОНА | B77: 901 | C77: 0200 | D77: 0000000000 | E77: 000 | F77: 000 | L77: 1346100 | M77: 1346100 | N77: 0 | O77: 1346100 | P77: 0 | Q77: 1346100 | R77: 0 | S77: 1360800 | T77: 1411100 | U77: 892827.83 | V77: 66.32700617
A78: Мобилизационная и вневойсковая подготовка | B78: 901 | C78: 0203 | D78: 0000000000 | E78: 000 | F78: 000 | L78: 1346100 | M78: 1346100 | N78: 0 | O78: 1346100 | P78: 0 | Q78: 1346100 | R78: 0 | S78: 1360800 | T78: 1411100 | U78: 892827.83 | V78: 66.32700617
A79: Муниципальная программа МО Красноуфимский округ "Обеспечение безопасности на территории МО Красноуфимский округ до 2020 года" | B79: 901 | C79: 0203 | D79: 0700000000 | E79: 000 | F79: 000 | L79: 1346100 | M79: 1346100 | N79: 0 | O79: 1346100 | P79: 0 | Q79: 1346100 | R79: 0 | S79: 1360800 | T79: 1411100 | U79: 892827.83 | V79: 66.32700617
A80: Подпрограмма "Осуществление переданных полномочий Российской Федерации по осуществлению первичного воинского учета на территориях, где отсутствуют военные комиссариаты" | B80: 901 | C80: 0203 | D80: 0770000000 | E80: 000 | F80: 000 | L80: 1346100 | M80: 1346100 | N80: 0 | O80: 1346100 | P80: 0 | Q80: 1346100 | R80: 0 | S80: 1360800 | T80: 1411100 | U80: 892827.83 | V80: 66.32700617
A81: Осуществление первичного воинского учета на территориях. где отсутствуют военные комиссариаты | B81: 901 | C81: 0203 | D81: 0770151180 | E81: 000 | F81: 000 | L81: 1346100 | M81: 1346100 | N81: 0 | O81: 1346100 | P81: 0 | Q81: 1346100 | R81: 0 | S81: 1360800 | T81: 1411100 | U81: 892827.83 | V81: 66.32700617
A82: Расходы на выплаты персоналу государственных (муниципальных) органов | B82: 901 | C82: 0203 | D82: 0770151180 | E82: 120 | F82: 000 | L82: 1169749.16 | M82: 1169749.16 | N82: 0 | O82: 1169749.16 | P82: 0 | Q82: 1169749.16 | R82: 0 | S82: 1159853 | T82: 1210053 | U82: 805538.27 | V82: 68.8641888
A83: Иные закупки товаров, работ и услуг для обеспечения государственных (муниципальных) нужд | B83: 901 | C83: 0203 | D83: 0770151180 | E83: 240 | F83: 000 | L83: 176350.84 | M83: 176350.84 | N83: 0 | O83: 176350.84 | P83: 0 | Q83: 176350.84 | R83: 0 | S83: 200947 | T83: 201047 | U83: 87289.56 | V83: 49.4976718
A84: НАЦИОНАЛЬНАЯ БЕЗОПАСНОСТЬ И ПРАВООХРАНИТЕЛЬНАЯ ДЕЯТЕЛЬНОСТЬ | B84: 901 | C84: 0300 | D84: 0000000000 | E84: 000 | F84: 000 | L84: 6924343.96 | M84: 6924343.96 | N84: 0 | O84: 6924343.96 | P84: 0 | Q84: 6924343.96 | R84: 0 | S84: 7453200 | T84: 7453200 | U84: 3669168.39 | V84: 52.98940103
A85: Защита населения и территории от последствий чрезвычайных ситуаций природного и техногенного характера, гражданская оборона | B85: 901 | C85: 0309 | D85: 0000000000 | E85: 000 | F85: 000 | L85: 5255543.96 | M85: 5255543.96 | N85: 0 | O85: 5255543.96 | P85: 0 | Q85: 5255543.96 | R85: 0 | S85: 5825100 | T85: 5825100 | U85: 2859993.74 | V85: 54.41860561
A86: Муниципальная программа МО Красноуфимский округ "Обеспечение безопасности на территории МО Красноуфимский округ до 2020 года" | B86: 901 | C86: 0309 | D86: 0700000000 | E86: 000 | F86: 000 | L86: 292073.96 | M86: 292073.96 | N86: 0 | O86: 292073.96 | P86: 0 | Q86: 292073.96 | R86: 0 | S86: 360000 | T86: 360000 | U86: 127932.46 | V86: 43.80139195
A87: Подпрограмма «Защита населения и территории МО Красноуфимский округ от чрезвычайных ситуаций природного, техногенного и биолого-социального характера, гражданская оборона» | B87: 901 | C87: 0309 | D87: 0710000000 | E87: 000 | F87: 000 | L87: 292073.96 | M87: 292073.96 | N87: 0 | O87: 292073.96 | P87: 0 | Q87: 292073.96 | R87: 0 | S87: 360000 | T87: 360000 | U87: 127932.46 | V87: 43.80139195
A88: Предупреждение и ликвидация последствий чрезвычайных ситуаций и стихийных бедствий природного, техногенного и биолого-социального характера | B88: 901 | C88: 0309 | D88: 0710122000 | E88: 000 | F88: 000 | L88: 292073.96 | M88: 292073.96 | N88: 0 | O88: 292073.96 | P88: 0 | Q88: 292073.96 | R88: 0 | S88: 360000 | T88: 360000 | U88: 127932.46 | V88: 43.80139195
A89: Иные закупки товаров, работ и услуг для обеспечения государственных (муниципальных) нужд | B89: 901 | C89: 0309 | D89: 0710122000 | E89: 240 | F89: 000 | L89: 292073.96 | M89: 292073.96 | N89: 0 | O89: 292073.96 | P89: 0 | Q89: 292073.96 | R89: 0 | S89: 360000 | T89: 360000 | U89: 127932.46 | V89: 43.80139195
A90: Муниципальная программа МО Красноуфимский округ "Развитие и модернизация жилищно-коммунального хозяйства и дорожного хозяйства, повышение энергетической эффективности в МО Красноуфимский округ до 2020 года" | B90: 901 | C90: 0309 | D90: 0900000000 | E90: 000 | F90: 000 | L90: 4963470 | M90: 4963470 | N90: 0 | O90: 4963470 | P90: 0 | Q90: 4963470 | R90: 0 | S90: 5465100 | T90: 5465100 | U90: 2732061.28 | V90: 55.04337248
A91: Подпрограмма "Обеспечение реализации муниципальной программы "Развитие и модернизация жилищно-коммунального хозяйства и дорожного хозяйства, повышение энергетической эффективности в МО Красноуфимский округ до 2020 года" | B91: 901 | C91: 0309 | D91: 0980000000 | E91: 000 | F91: 000 | L91: 4963470 | M91: 4963470 | N91: 0 | O91: 4963470 | P91: 0 | Q91: 4963470 | R91: 0 | S91: 5465100 | T91: 5465100 | U91: 2732061.28 | V91: 55.04337248
A92: Содержание отдела ЕДДС | B92: 901 | C92: 0309 | D92: 0980223000 | E92: 000 | F92: 000 | L92: 4963470 | M92: 4963470 | N92: 0 | O92: 4963470 | P92: 0 | Q92: 4963470 | R92: 0 | S92: 5465100 | T92: 5465100 | U92: 2732061.28 | V92: 55.04337248
A93: Расходы на выплаты персоналу казенных учреждений | B93: 901 | C93: 0309 | D93: 0980223000 | E93: 110 | F93: 000 | L93: 4528528.33 | M93: 4528528.33 | N93: 0 | O93: 4528528.33 | P93: 0 | Q93: 4528528.33 | R93: 0 | S93: 4510695 | T93: 4510695 | U93: 2577218.34 | V93: 56.91072579
A94: Иные закупки товаров, работ и услуг для обеспечения государственных (муниципальных) нужд | B94: 901 | C94: 0309 | D94: 0980223000 | E94: 240 | F94: 000 | L94: 434941.67 | M94: 434941.67 | N94: 0 | O94: 434941.67 | P94: 0 | Q94: 434941.67 | R94: 0 | S94: 954405 | T94: 954405 | U94: 154842.94 | V94: 35.60085195
A95: Обеспечение пожарной безопасности | B95: 901 | C95: 0310 | D95: 0000000000 | E95: 000 | F95: 000 | L95: 1287000 | M95: 1287000 | N95: 0 | O95: 1287000 | P95: 0 | Q95: 1287000 | R95: 0 | S95: 1243800 | T95: 1243800 | U95: 657047.65 | V95: 51.05265346
A96: Муниципальная программа МО Красноуфимский округ "Обеспечение безопасности на территории МО Красноуфимский округ до 2020 года" | B96: 901 | C96: 0310 | D96: 0700000000 | E96: 000 | F96: 000 | L96: 1287000 | M96: 1287000 | N96: 0 | O96: 1287000 | P96: 0 | Q96: 1287000 | R96: 0 | S96: 1243800 | T96: 1243800 | U96: 657047.65 | V96: 51.05265346
A97: Подпрограмма "Обеспечение пожарной безопасности на территории МО Красноуфимский округ" | B97: 901 | C97: 0310 | D97: 0720000000 | E97: 000 | F97: 000 | L97: 1287000 | M97: 1287000 | N97: 0 | O97: 1287000 | P97: 0 | Q97: 1287000 | R97: 0 | S97: 1243800 | T97: 1243800 | U97: 657047.65 | V97: 51.05265346
A98: Обеспечение первичных мер пожарной безопасности | B98: 901 | C98: 0310 | D98: 0720122000 | E98: 000 | F98: 000 | L98: 667000 | M98: 667000 | N98: 0 | O98: 667000 | P98: 0 | Q98: 667000 | R98: 0 | S98: 623800 | T98: 623800 | U98: 440123.19 | V98: 65.98548576
A99: Иные закупки товаров, работ и услуг для обеспечения государственных (муниципальных) нужд | B99: 901 | C99: 0310 | D99: 0720122000 | E99: 240 | F99: 000 | L99: 662000 | M99: 662000 | N99: 0 | O99: 662000 | P99: 0 | Q99: 662000 | R99: 0 | S99: 613800 | T99: 613800 | U99: 440123.19 | V99: 66.48386556
A100: Субсидии некоммерческим организациям (за исключением государственных (муниципальных) учреждений) | B100: 901 | C100: 0310 | D100: 0720122000 | E100: 630 | F100: 000 | L100: 0 | M100: 0 | N100: 0 | O100: 0 | P100: 0 | Q100: 0 | R100: 0 | S100: 5000 | T100: 5000 | U100: 0
A101: Специальные расходы | B101: 901 | C101: 0310 | D101: 0720122000 | E101: 880 | F101: 000 | L101: 5000 | M101: 5000 | N101: 0 | O101: 5000 | P101: 0 | Q101: 5000 | R101: 0 | S101: 5000 | T101: 5000 | U101: 0 | V101: 0
A102: Восстановление пожарного водоснабжения на территории Муниципального образования Красноуфимский округ | B102: 901 | C102: 0310 | D102: 0720222000 | E102: 000 | F102: 000 | L102: 620000 | M102: 620000 | N102: 0 | O102: 620000 | P102: 0 | Q102: 620000 | R102: 0 | S102: 620000 | T102: 620000 | U102: 216924.46 | V102: 34.98781613
A103: Иные закупки товаров, работ и услуг для обеспечения государственных (муниципальных) нужд | B103: 901 | C103: 0310 | D103: 0720222000 | E103: 240 | F103: 000 | L103: 620000 | M103: 620000 | N103: 0 | O103: 620000 | P103: 0 | Q103: 620000 | R103: 0 | S103: 620000 | T103: 620000 | U103: 216924.46 | V103: 34.98781613
A104: Другие вопросы в области национальной безопасности и правоохранительной деятельности | B104: 901 | C104: 0314 | D104: 0000000000 | E104: 000 | F104: 000 | L104: 381800 | M104: 381800 | N104: 0 | O104: 381800 | P104: 0 | Q104: 381800 | R104: 0 | S104: 384300 | T104: 384300 | U104: 152127 | V104: 39.84468308
A105: Муниципальная программа МО Красноуфимский округ "Обеспечение безопасности на территории МО Красноуфимский округ до 2020 года" | B105: 901 | C105: 0314 | D105: 0700000000 | E105: 000 | F105: 000 | L105: 381800 | M105: 381800 | N105: 0 | O105: 381800 | P105: 0 | Q105: 381800 | R105: 0 | S105: 384300 | T105: 384300 | U105: 152127 | V105: 39.84468308
A106: Подпрограмма "Комплексная профилактика правонарушений на территории МО Красноуфимский округ" | B106: 901 | C106: 0314 | D106: 0730000000 | E106: 000 | F106: 000 | L106: 187500 | M106: 187500 | N106: 0 | O106: 187500 | P106: 0 | Q106: 187500 | R106: 0 | S106: 190000 | T106: 190000 | U106: 152127 | V106: 81.1344
A107: Комплексная профилактика правонарушений на территории МО Красноуфимский округ | B107: 901 | C107: 0314 | D107: 0730122000 | E107: 000 | F107: 000 | L107: 187500 | M107: 187500 | N107: 0 | O107: 187500 | P107: 0 | Q107: 187500 | R107: 0 | S107: 190000 | T107: 190000 | U107: 152127 | V107: 81.1344
A108: Иные закупки товаров, работ и услуг для обеспечения государственных (муниципальных) нужд | B108: 901 | C108: 0314 | D108: 0730122000 | E108: 240 | F108: 000 | L108: 102500 | M108: 102500 | N108: 0 | O108: 102500 | P108: 0 | Q108: 102500 | R108: 0 | S108: 105000 | T108: 105000 | U108: 93747 | V108: 91.4604878
A109: Специальные расходы | B109: 901 | C109: 0314 | D109: 0730122000 | E109: 880 | F109: 000 | L109: 85000 | M109: 85000 | N109: 0 | O109: 85000 | P109: 0 | Q109: 85000 | R109: 0 | S109: 85000 | T109: 85000 | U109: 58380 | V109: 68.68235294
A110: Подпрограмма "Мероприятия по профилактике экстемизма и терроризма, а также минимизации и ликвидации последствий проявления терроризма и эксремизма на территории МО Красноуфимский округ" | B110: 901 | C110: 0314 | D110: 0740000000 | E110: 000 | F110: 000 | L110: 194300 | M110: 194300 | N110: 0 | O110: 194300 | P110: 0 | Q110: 194300 | R110: 0 | S110: 194300 | T110: 194300 | U110: 0 | V110: 0
A111: Мероприятия по профилактике терроризма и экстремизма, а также минимизации и ликвидации последствий проявления терроризма и экстремизма на территории МО Красноуфимский округ | B111: 901 | C111: 0314 | D111: 0740122000 | E111: 000 | F111: 000 | L111: 194300 | M111: 194300 | N111: 0 | O111: 194300 | P111: 0 | Q111: 194300 | R111: 0 | S111: 194300 | T111: 194300 | U111: 0 | V111: 0
A112: Иные закупки товаров, работ и услуг для обеспечения государственных (муниципальных) нужд | B112: 901 | C112: 0314 | D112: 0740122000 | E112: 240 | F112: 000 | L112: 194300 | M112: 194300 | N112: 0 | O112: 194300 | P112: 0 | Q112: 194300 | R112: 0 | S112: 194300 | T112: 194300 | U112: 0 | V112: 0
A113: НАЦИОНАЛЬНАЯ ЭКОНОМИКА | B113: 901 | C113: 0400 | D113: 0000000000 | E113: 000 | F113: 000 | L113: 42877313.95 | M113: 42877313.95 | N113: 0 | O113: 42877313.95 | P113: 0 | Q113: 42877313.95 | R113: 0 | S113: 56116620 | T113: 29009500 | U113: 17237718.46 | V113: 40.20242145
A114: Сельское хозяйство и рыболовство | B114: 901 | C114: 0405 | D114: 0000000000 | E114: 000 | F114: 000 | L114: 665200 | M114: 665200 | N114: 0 | O114: 665200 | P114: 0 | Q114: 665200 | R114: 0 | S114: 653600 | T114: 642000 | U114: 269037.09 | V114: 40.44454149
A115: Муниципальная программа МО Красноуфимский округ "Создание условий для развития малого и среднего предпринимательства, хозяйствующих субъектов в сфере АПК, коллективного садоводства в МО Красноуфимский округ до 2024 года" | B115: 901 | C115: 0405 | D115: 0600000000 | E115: 000 | F115: 000 | L115: 63000 | M115: 63000 | N115: 0 | O115: 63000 | P115: 0 | Q115: 63000 | R115: 0 | S115: 63000 | T115: 63000 | U115: 16000 | V115: 25.3968254
A116: Содействие в развитии хозяйствования в сфере АПК | B116: 901 | C116: 0405 | D116: 0600123000 | E116: 000 | F116: 000 | L116: 63000 | M116: 63000 | N116: 0 | O116: 63000 | P116: 0 | Q116: 63000 | R116: 0 | S116: 63000 | T116: 63000 | U116: 16000 | V116: 25.3968254
A117: Иные закупки товаров, работ и услуг для обеспечения государственных (муниципальных) нужд | B117: 901 | C117: 0405 | D117: 0600123000 | E117: 240 | F117: 000 | L117: 63000 | M117: 63000 | N117: 0 | O117: 63000 | P117: 0 | Q117: 63000 | R117: 0 | S117: 63000 | T117: 63000 | U117: 16000 | V117: 25.3968254
A118: Муниципальная программа МО Красноуфимский округ "Обеспечение безопасности на территории МО Красноуфимский округ до 2020 года" | B118: 901 | C118: 0405 | D118: 0700000000 | E118: 000 | F118: 000 | L118: 602200 | M118: 602200 | N118: 0 | O118: 602200 | P118: 0 | Q118: 602200 | R118: 0 | S118: 590600 | T118: 579000 | U118: 253037.09 | V118: 42.01877948
A119: Подпрограмма «Защита населения и территории МО Красноуфимский округ от чрезвычайных ситуаций природного, техногенного и биолого-социального характера, гражданская оборона» | B119: 901 | C119: 0405 | D119: 0710000000 | E119: 000 | F119: 000 | L119: 602200 | M119: 602200 | N119: 0 | O119: 602200 | P119: 0 | Q119: 602200 | R119: 0 | S119: 590600 | T119: 579000 | U119: 253037.09 | V119: 42.01877948
A120: Осуществление государственного полномочия Свердловской области по организации проведения мероприятий по отлову и содержанию безнадзорных собак | B120: 901 | C120: 0405 | D120: 0710142П00 | E120: 000 | F120: 000 | L120: 602200 | M120: 602200 | N120: 0 | O120: 602200 | P120: 0 | Q120: 602200 | R120: 0 | S120: 590600 | T120: 579000 | U120: 253037.09 | V120: 42.01877948
A121: Иные закупки товаров, работ и услуг для обеспечения государственных (муниципальных) нужд | B121: 901 | C121: 0405 | D121: 0710142П00 | E121: 240 | F121: 000 | L121: 602200 | M121: 602200 | N121: 0 | O121: 602200 | P121: 0 | Q121: 602200 | R121: 0 | S121: 590600 | T121: 579000 | U121: 253037.09 | V121: 42.01877948
A122: Водное хозяйство | B122: 901 | C122: 0406 | D122: 0000000000 | E122: 000 | F122: 000 | L122: 9212945 | M122: 9212945 | N122: 0 | O122: 9212945 | P122: 0 | Q122: 9212945 | R122: 0 | S122: 29344120 | T122: 2248600 | U122: 1766054.13 | V122: 19.16926813
A123: Муниципальная программа МО Красноуфимский округ "Обеспечение безопасности на территории МО Красноуфимский округ до 2020 года" | B123: 901 | C123: 0406 | D123: 0700000000 | E123: 000 | F123: 000 | L123: 9212945 | M123: 9212945 | N123: 0 | O123: 9212945 | P123: 0 | Q123: 9212945 | R123: 0 | S123: 29344120 | T123: 2248600 | U123: 1766054.13 | V123: 19.16926813
A124: Подпрограмма "Обеспечение безопасности на опасных объектах МО Красноуфимский округ" | B124: 901 | C124: 0406 | D124: 0750000000 | E124: 000 | F124: 000 | L124: 241500 | M124: 241500 | N124: 0 | O124: 241500 | P124: 0 | Q124: 241500 | R124: 0 | S124: 252000 | T124: 252000 | U124: 215760 | V124: 89.34161491
A125: Страхование гидротехнических сооружений и газопроводов | B125: 901 | C125: 0406 | D125: 0750122000 | E125: 000 | F125: 000 | L125: 241500 | M125: 241500 | N125: 0 | O125: 241500 | P125: 0 | Q125: 241500 | R125: 0 | S125: 252000 | T125: 252000 | U125: 215760 | V125: 89.34161491
A126: Иные закупки товаров, работ и услуг для обеспечения государственных (муниципальных) нужд | B126: 901 | C126: 0406 | D126: 0750122000 | E126: 240 | F126: 000 | L126: 241500 | M126: 241500 | N126: 0 | O126: 241500 | P126: 0 | Q126: 241500 | R126: 0 | S126: 252000 | T126: 252000 | U126: 215760 | V126: 89.34161491
A127: Подпрограмма "Обеспечение рационального и безопасного природопользования в МО Красноуфимский округ" | B127: 901 | C127: 0406 | D127: 0760000000 | E127: 000 | F127: 000 | L127: 8971445 | M127: 8971445 | N127: 0 | O127: 8971445 | P127: 0 | Q127: 8971445 | R127: 0 | S127: 29092120 | T127: 1996600 | U127: 1550294.13 | V127: 17.28031694
A128: Осуществление водохозяйственных мероприятий | B128: 901 | C128: 0406 | D128: 0760222000 | E128: 000 | F128: 000 | L128: 2189945 | M128: 2189945 | N128: 0 | O128: 2189945 | P128: 0 | Q128: 2189945 | R128: 0 | S128: 1996600 | T128: 1996600 | U128: 1550294.13 | V128: 70.79146417
A129: Иные закупки товаров, работ и услуг для обеспечения государственных (муниципальных) нужд | B129: 901 | C129: 0406 | D129: 0760222000 | E129: 240 | F129: 000 | L129: 2179445 | M129: 2179445 | N129: 0 | O129: 2179445 | P129: 0 | Q129: 2179445 | R129: 0 | S129: 1996600 | T129: 1996600 | U129: 1543294.13 | V129: 70.81133637
A130: Уплата налогов, сборов и иных платежей | B130: 901 | C130: 0406 | D130: 0760222000 | E130: 850 | F130: 000 | L130: 10500 | M130: 10500 | N130: 0 | O130: 10500 | P130: 0 | Q130: 10500 | R130: 0 | S130: 0 | T130: 0 | U130: 7000 | V130: 66.66666667
A131: Капитальный ремонт гидротехнических сооружений, находящихся в собственности МО Красноуфимский округ | B131: 901 | C131: 0406 | D131: 07602L0160 | E131: 000 | F131: 000 | L131: 6781500 | M131: 6781500 | N131: 0 | O131: 6781500 | P131: 0 | Q131: 6781500 | R131: 0 | S131: 27095520 | T131: 0 | U131: 0 | V131: 0
A132: Иные закупки товаров, работ и услуг для обеспечения государственных (муниципальных) нужд | B132: 901 | C132: 0406 | D132: 07602L0160 | E132: 240 | F132: 000 | L132: 6781500 | M132: 6781500 | N132: 0 | O132: 6781500 | P132: 0 | Q132: 6781500 | R132: 0 | S132: 27095520 | T132: 0 | U132: 0 | V132: 0
A133: Капитальный ремонт гидротехнических сооружений, находящихся в собственности МО Красноуфимский округ | B133: 901 | C133: 0406 | D133: 07602R0160 | E133: 000 | F133: 000 | L133: 0 | M133: 0 | N133: 0 | O133: 0 | P133: 0 | Q133: 0 | R133: 0 | S133: 0 | T133: 0 | U133: 0
A134: Иные закупки товаров, работ и услуг для обеспечения государственных (муниципальных) нужд | B134: 901 | C134: 0406 | D134: 07602R0160 | E134: 240 | F134: 000 | L134: 0 | M134: 0 | N134: 0 | O134: 0 | P134: 0 | Q134: 0 | R134: 0 | S134: 0 | T134: 0 | U134: 0
A135: Транспорт | B135: 901 | C135: 0408 | D135: 0000000000 | E135: 000 | F135: 000 | L135: 1420200 | M135: 1420200 | N135: 0 | O135: 1420200 | P135: 0 | Q135: 1420200 | R135: 0 | S135: 1420200 | T135: 1420200 | U135: 1329301.58 | V135: 93.59960428
A136: Муниципальная программа МО Красноуфимский округ "Развитие и модернизация жилищно-коммунального хозяйства и дорожного хозяйства, повышение энергетической эффективности в МО Красноуфимский округ до 2020 года" | B136: 901 | C136: 0408 | D136: 0900000000 | E136: 000 | F136: 000 | L136: 1420200 | M136: 1420200 | N136: 0 | O136: 1420200 | P136: 0 | Q136: 1420200 | R136: 0 | S136: 1420200 | T136: 1420200 | U136: 1329301.58 | V136: =U136/L136*100 -> 93.59960428
A137: Подпрограмма "Развитие транспорта и транспортной инфраструктуры в МО Красноуфимский округ" | B137: 901 | C137: 0408 | D137: 0970000000 | E137: 000 | F137: 000 | L137: 1420200 | M137: 1420200 | N137: 0 | O137: 1420200 | P137: 0 | Q137: 1420200 | R137: 0 | S137: 1420200 | T137: 1420200 | U137: 1329301.58 | V137: 93.59960428
A138: Проведение отдельных мероприятий в области автомобильного транспорта | B138: 901 | C138: 0408 | D138: 0970123000 | E138: 000 | F138: 000 | L138: 1420200 | M138: 1420200 | N138: 0 | O138: 1420200 | P138: 0 | Q138: 1420200 | R138: 0 | S138: 1420200 | T138: 1420200 | U138: 1329301.58 | V138: 93.59960428
A139: Субсидии юридическим лицам (кроме некоммерческих организаций), индивидуальным предпринимателям, физическим лицам - производителям товаров, работ, услуг | B139: 901 | C139: 0408 | D139: 0970123000 | E139: 810 | F139: 000 | L139: 1420200 | M139: 1420200 | N139: 0 | O139: 1420200 | P139: 0 | Q139: 1420200 | R139: 0 | S139: 1420200 | T139: 1420200 | U139: 1329301.58 | V139: 93.59960428
A140: Дорожное хозяйство (дорожные фонды) | B140: 901 | C140: 0409 | D140: 0000000000 | E140: 000 | F140: 000 | L140: 23417199 | M140: 23417199 | N140: 0 | O140: 23417199 | P140: 0 | Q140: 23417199 | R140: 0 | S140: 19800000 | T140: 19800000 | U140: 13371425.66 | V140: 57.10087556
A141: Муниципальная программа МО Красноуфимский округ "Развитие и модернизация жилищно-коммунального хозяйства и дорожного хозяйства, повышение энергетической эффективности в МО Красноуфимский округ до 2020 года" | B141: 901 | C141: 0409 | D141: 0900000000 | E141: 000 | F141: 000 | L141: 23417199 | M141: 23417199 | N141: 0 | O141: 23417199 | P141: 0 | Q141: 23417199 | R141: 0 | S141: 19800000 | T141: 19800000 | U141: 13371425.66 | V141: 57.10087556
A142: Подпрограмма "Развитие и обеспечение сохранности сети автомобильных дорог местного значения на территории МО Красноуфимский округ" | B142: 901 | C142: 0409 | D142: 0950000000 | E142: 000 | F142: 000 | L142: 23417199 | M142: 23417199 | N142: 0 | O142: 23417199 | P142: 0 | Q142: 23417199 | R142: 0 | S142: 19800000 | T142: 19800000 | U142: 13371425.66 | V142: 57.10087556
A143: Разработка проектной документации на объекты строительства и реконструкции автомобильных дорог общего пользования местного значения | B143: 901 | C143: 0409 | D143: 0950124000 | E143: 000 | F143: 000 | L143: 0 | M143: 0 | N143: 0 | O143: 0 | P143: 0 | Q143: 0 | R143: 0 | S143: 2000000 | T143: 2000000 | U143: 0
A144: Иные закупки товаров, работ и услуг для обеспечения государственных (муниципальных) нужд | B144: 901 | C144: 0409 | D144: 0950124000 | E144: 240 | F144: 000 | L144: 0 | M144: 0 | N144: 0 | O144: 0 | P144: 0 | Q144: 0 | R144: 0 | S144: 2000000 | T144: 2000000 | U144: 0
A145: Содержание автомобильных дорог общего пользования местного значения и искусственных сооружений, расположенных на них | B145: 901 | C145: 0409 | D145: 0950224000 | E145: 000 | F145: 000 | L145: 5991713.34 | M145: 5991713.34 | N145: 0 | O145: 5991713.34 | P145: 0 | Q145: 5991713.34 | R145: 0 | S145: 5770000 | T145: 5770000 | U145: 3828188.76 | V145: 63.89138703
A146: Иные закупки товаров, работ и услуг для обеспечения государственных (муниципальных) нужд | B146: 901 | C146: 0409 | D146: 0950224000 | E146: 240 | F146: 000 | L146: 5991713.34 | M146: 5991713.34 | N146: 0 | O146: 5991713.34 | P146: 0 | Q146: 5991713.34 | R146: 0 | S146: 5770000 | T146: 5770000 | U146: 3828188.76 | V146: 63.89138703
A147: Ремонт атомобильных дорог общего пользования местного значения и искусственных сооружений, расположенных на них | B147: 901 | C147: 0409 | D147: 0950324000 | E147: 000 | F147: 000 | L147: 14305649.66 | M147: 14305649.66 | N147: 0 | O147: 14305649.66 | P147: 0 | Q147: 14305649.66 | R147: 0 | S147: 10030000 | T147: 10030000 | U147: 9454625.92 | V147: 66.0901542
A148: Иные закупки товаров, работ и услуг для обеспечения государственных (муниципальных) нужд | B148: 901 | C148: 0409 | D148: 0950324000 | E148: 240 | F148: 000 | L148: 14305649.66 | M148: 14305649.66 | N148: 0 | O148: 14305649.66 | P148: 0 | Q148: 14305649.66 | R148: 0 | S148: 10030000 | T148: 10030000 | U148: 9454625.92 | V148: 66.0901542
A149: Мероприятия по повышению безопасности дорожного движения на территории МО Красноуфимский округ | B149: 901 | C149: 0409 | D149: 0950624000 | E149: 000 | F149: 000 | L149: 719836 | M149: 719836 | N149: 0 | O149: 719836 | P149: 0 | Q149: 719836 | R149: 0 | S149: 2000000 | T149: 2000000 | U149: 88610.98 | V149: 12.30988447
A150: Иные закупки товаров, работ и услуг для обеспечения государственных (муниципальных) нужд | B150: 901 | C150: 0409 | D150: 0950624000 | E150: 240 | F150: 000 | L150: 719836 | M150: 719836 | N150: 0 | O150: 719836 | P150: 0 | Q150: 719836 | R150: 0 | S150: 2000000 | T150: 2000000 | U150: 88610.98 | V150: 12.30988447
A151: Разработка и согласование схемы развития и обеспечения сохранности автомобильных дорог общего пользования местного значения | B151: 901 | C151: 0409 | D151: 0950724000 | E151: 000 | F151: 000 | L151: 2400000 | M151: 2400000 | N151: 0 | O151: 2400000 | P151: 0 | Q151: 2400000 | R151: 0 | S151: 0 | T151: 0 | U151: 0 | V151: 0
A152: Иные закупки товаров, работ и услуг для обеспечения государственных (муниципальных) нужд | B152: 901 | C152: 0409 | D152: 0950724000 | E152: 240 | F152: 000 | L152: 2400000 | M152: 2400000 | N152: 0 | O152: 2400000 | P152: 0 | Q152: 2400000 | R152: 0 | S152: 0 | T152: 0 | U152: 0 | V152: 0
A153: Связь и информатика | B153: 901 | C153: 0410 | D153: 0000000000 | E153: 000 | F153: 000 | L153: 81000 | M153: 81000 | N153: 0 | O153: 81000 | P153: 0 | Q153: 81000 | R153: 0 | S153: 81000 | T153: 81000 | U153: 12900 | V153: 15.92592593
A154: Муниципальная программа МО Красноуфимский округ "Совершенствование муниципального управления в МО Красноуфимский округ до 2020 года" | B154: 901 | C154: 0410 | D154: 0800000000 | E154: 000 | F154: 000 | L154: 81000 | M154: 81000 | N154: 0 | O154: 81000 | P154: 0 | Q154: 81000 | R154: 0 | S154: 81000 | T154: 81000 | U154: 12900 | V154: 15.92592593
A155: Подпрограмма "Информатизация Муниципального образования Красноуфимский округ до 2020 года" | B155: 901 | C155: 0410 | D155: 0850000000 | E155: 000 | F155: 000 | L155: 81000 | M155: 81000 | N155: 0 | O155: 81000 | P155: 0 | Q155: 81000 | R155: 0 | S155: 81000 | T155: 81000 | U155: 12900 | V155: 15.92592593
A156: Мероприятия по обеспечению предоставления муниципальных услуг в электронном виде | B156: 901 | C156: 0410 | D156: 0850123000 | E156: 000 | F156: 000 | L156: 81000 | M156: 81000 | N156: 0 | O156: 81000 | P156: 0 | Q156: 81000 | R156: 0 | S156: 81000 | T156: 81000 | U156: 12900 | V156: 15.92592593
A157: Иные закупки товаров, работ и услуг для обеспечения государственных (муниципальных) нужд | B157: 901 | C157: 0410 | D157: 0850123000 | E157: 240 | F157: 000 | L157: 81000 | M157: 81000 | N157: 0 | O157: 81000 | P157: 0 | Q157: 81000 | R157: 0 | S157: 81000 | T157: 81000 | U157: 12900 | V157: 15.92592593
A158: Другие вопросы в области национальной экономики | B158: 901 | C158: 0412 | D158: 0000000000 | E158: 000 | F158: 000 | L158: 8080769.95 | M158: 8080769.95 | N158: 0 | O158: 8080769.95 | P158: 0 | Q158: 8080769.95 | R158: 0 | S158: 4817700 | T158: 4817700 | U158: 489000 | V158: 6.051403555
A159: Муниципальная программа МО Красноуфимский округ "Градостроительное планирование территорий МО Красноуфимский округ до 2020 года" | B159: 901 | C159: 0412 | D159: 0400000000 | E159: 000 | F159: 000 | L159: 7518069.95 | M159: 7518069.95 | N159: 0 | O159: 7518069.95 | P159: 0 | Q159: 7518069.95 | R159: 0 | S159: 4581000 | T159: 4581000 | U159: 0 | V159: 0
A160: Разработка документации по планировке территории МО Красноуфимский округ | B160: 901 | C160: 0412 | D160: 0400123000 | E160: 000 | F160: 000 | L160: 4272369.95 | M160: 4272369.95 | N160: 0 | O160: 4272369.95 | P160: 0 | Q160: 4272369.95 | R160: 0 | S160: 4581000 | T160: 4581000 | U160: 0 | V160: 0
A161: Иные закупки товаров, работ и услуг для обеспечения государственных (муниципальных) нужд | B161: 901 | C161: 0412 | D161: 0400123000 | E161: 240 | F161: 000 | L161: 4272369.95 | M161: 4272369.95 | N161: 0 | O161: 4272369.95 | P161: 0 | Q161: 4272369.95 | R161: 0 | S161: 4581000 | T161: 4581000 | U161: 0 | V161: 0
A162: Разработка документации по планировке территории за счет средств областного бюджета | B162: 901 | C162: 0412 | D162: 0400143600 | E162: 000 | F162: 000 | L162: 2079000 | M162: 2079000 | N162: 0 | O162: 2079000 | P162: 0 | Q162: 2079000 | R162: 0 | S162: 0 | T162: 0 | U162: 0 | V162: 0
A163: Иные закупки товаров, работ и услуг для обеспечения государственных (муниципальных) нужд | B163: 901 | C163: 0412 | D163: 0400143600 | E163: 240 | F163: 000 | L163: 2079000 | M163: 2079000 | N163: 0 | O163: 2079000 | P163: 0 | Q163: 2079000 | R163: 0 | S163: 0 | T163: 0 | U163: 0 | V163: 0
A164: Проведение работ по описанию местоположения границ территориальных зон и населенных пунктов, внесение в Единый государственный реестр недвижимости сведений о границах территориальных зон и населенных пунктов | B164: 901 | C164: 0412 | D164: 0400143800 | E164: 000 | F164: 000 | L164: 1166700 | M164: 1166700 | N164: 0 | O164: 1166700 | P164: 0 | Q164: 1166700 | R164: 0 | S164: 0 | T164: 0 | U164: 0 | V164: 0
A165: Иные закупки товаров, работ и услуг для обеспечения государственных (муниципальных) нужд | B165: 901 | C165: 0412 | D165: 0400143800 | E165: 240 | F165: 000 | L165: 1166700 | M165: 1166700 | N165: 0 | O165: 1166700 | P165: 0 | Q165: 1166700 | R165: 0 | S165: 0 | T165: 0 | U165: 0 | V165: 0
A166: Муниципальная программа МО Красноуфимский округ "Создание условий для развития малого и среднего предпринимательства, хозяйствующих субъектов в сфере АПК, коллективного садоводства в МО Красноуфимский округ до 2024 года" | B166: 901 | C166: 0412 | D166: 0600000000 | E166: 000 | F166: 000 | L166: 562700 | M166: 562700 | N166: 0 | O166: 562700 | P166: 0 | Q166: 562700 | R166: 0 | S166: 236700 | T166: 236700 | U166: 489000 | V166: 86.90243469
A167: Создание условий для развития и содействие развитию малого и среднего предпринимательства | B167: 901 | C167: 0412 | D167: 0600223000 | E167: 000 | F167: 000 | L167: 191700 | M167: 191700 | N167: 0 | O167: 191700 | P167: 0 | Q167: 191700 | R167: 0 | S167: 191700 | T167: 191700 | U167: 163000 | V167: 85.02869066
A168: Иные закупки товаров, работ и услуг для обеспечения государственных (муниципальных) нужд | B168: 901 | C168: 0412 | D168: 0600223000 | E168: 240 | F168: 000 | L168: 0 | M168: 0 | N168: 0 | O168: 0 | P168: 0 | Q168: 0 | R168: 0 | S168: 123000 | T168: 123000 | U168: 0
A169: Субсидии некоммерческим организациям (за исключением государственных (муниципальных) учреждений) | B169: 901 | C169: 0412 | D169: 0600223000 | E169: 630 | F169: 000 | L169: 163000 | M169: 163000 | N169: 0 | O169: 163000 | P169: 0 | Q169: 163000 | R169: 0 | S169: 0 | T169: 0 | U169: 163000 | V169: 100
A170: Субсидии юридическим лицам (кроме некоммерческих организаций), индивидуальным предпринимателям, физическим лицам - производителям товаров, работ, услуг | B170: 901 | C170: 0412 | D170: 0600223000 | E170: 810 | F170: 000 | L170: 28700 | M170: 28700 | N170: 0 | O170: 28700 | P170: 0 | Q170: 28700 | R170: 0 | S170: 68700 | T170: 68700 | U170: 0 | V170: 0
A171: Развитие системы поддержки малого и среднего предпринимательства на территории Муниципального образования Красноуфимский округ за счет средств областного бюджета | B171: 901 | C171: 0412 | D171: 0600245270 | E171: 000 | F171: 000 | L171: 326000 | M171: 326000 | N171: 0 | O171: 326000 | P171: 0 | Q171: 326000 | R171: 0 | S171: 0 | T171: 0 | U171: 326000 | V171: 100
A172: Субсидии некоммерческим организациям (за исключением государственных (муниципальных) учреждений) | B172: 901 | C172: 0412 | D172: 0600245270 | E172: 630 | F172: 000 | L172: 326000 | M172: 326000 | N172: 0 | O172: 326000 | P172: 0 | Q172: 326000 | R172: 0 | S172: 0 | T172: 0 | U172: 326000 | V172: 100
A173: Инженерное обустройство земель для ведения коллективного садоводства | B173: 901 | C173: 0412 | D173: 0600323000 | E173: 000 | F173: 000 | L173: 45000 | M173: 45000 | N173: 0 | O173: 45000 | P173: 0 | Q173: 45000 | R173: 0 | S173: 45000 | T173: 45000 | U173: 0 | V173: 0
A174: Субсидии некоммерческим организациям (за исключением государственных (муниципальных) учреждений) | B174: 901 | C174: 0412 | D174: 0600323000 | E174: 630 | F174: 000 | L174: 45000 | M174: 45000 | N174: 0 | O174: 45000 | P174: 0 | Q174: 45000 | R174: 0 | S174: 45000 | T174: 45000 | U174: 0 | V174: 0
A175: ЖИЛИЩНО-КОММУНАЛЬНОЕ ХОЗЯЙСТВО | B175: 901 | C175: 0500 | D175: 0000000000 | E175: 000 | F175: 000 | L175: 83259744.34 | M175: 83259744.34 | N175: 0 | O175: 83259744.34 | P175: 0 | Q175: 83259744.34 | R175: 0 | S175: 28031300 | T175: 28031300 | U175: 31248434.03 | V175: 37.53126349
A176: Жилищное хозяйство | B176: 901 | C176: 0501 | D176: 0000000000 | E176: 000 | F176: 000 | L176: 1420283.72 | M176: 1420283.72 | N176: 0 | O176: 1420283.72 | P176: 0 | Q176: 1420283.72 | R176: 0 | S176: 1423800 | T176: 1423800 | U176: 198625 | V176: 13.98488184
A177: Муниципальная программа МО Красноуфимский округ "Развитие и модернизация жилищно-коммунального хозяйства и дорожного хозяйства, повышение энергетической эффективности в МО Красноуфимский округ до 2020 года" | B177: 901 | C177: 0501 | D177: 0900000000 | E177: 000 | F177: 000 | L177: 1420283.72 | M177: 1420283.72 | N177: 0 | O177: 1420283.72 | P177: 0 | Q177: 1420283.72 | R177: 0 | S177: 1423800 | T177: 1423800 | U177: 198625 | V177: 13.98488184
A178: Подпрограмма "Повышение качества условий проживания населения МО Красноуфимский округ" | B178: 901 | C178: 0501 | D178: 0920000000 | E178: 000 | F178: 000 | L178: 1420283.72 | M178: 1420283.72 | N178: 0 | O178: 1420283.72 | P178: 0 | Q178: 1420283.72 | R178: 0 | S178: 1423800 | T178: 1423800 | U178: 198625 | V178: 13.98488184
A179: Формирование жилищного фонда для переселения граждан из жилых помещений, признанных непригодными для проживания | B179: 901 | C179: 0501 | D179: 0920123000 | E179: 000 | F179: 000 | L179: 0 | M179: 0 | N179: 0 | O179: 0 | P179: 0 | Q179: 0 | R179: 0 | S179: 973800 | T179: 973800 | U179: 0
A180: Бюджетные инвестиции | B180: 901 | C180: 0501 | D180: 0920123000 | E180: 410 | F180: 000 | L180: 0 | M180: 0 | N180: 0 | O180: 0 | P180: 0 | Q180: 0 | R180: 0 | S180: 973800 | T180: 973800 | U180: 0
A181: Капитальный ремонт муниципального жилого фонда | B181: 901 | C181: 0501 | D181: 0920223000 | E181: 000 | F181: 000 | L181: 1420283.72 | M181: 1420283.72 | N181: 0 | O181: 1420283.72 | P181: 0 | Q181: 1420283.72 | R181: 0 | S181: 450000 | T181: 450000 | U181: 198625 | V181: 13.98488184
A182: Иные закупки товаров, работ и услуг для обеспечения государственных (муниципальных) нужд | B182: 901 | C182: 0501 | D182: 0920223000 | E182: 240 | F182: 000 | L182: 1420283.72 | M182: 1420283.72 | N182: 0 | O182: 1420283.72 | P182: 0 | Q182: 1420283.72 | R182: 0 | S182: 450000 | T182: 450000 | U182: 198625 | V182: 13.98488184
A183: Коммунальное хозяйство | B183: 901 | C183: 0502 | D183: 0000000000 | E183: 000 | F183: 000 | L183: 64365778.11 | M183: 64365778.11 | N183: 0 | O183: 64365778.11 | P183: 0 | Q183: 64365778.11 | R183: 0 | S183: 17697500 | T183: 17697500 | U183: 22803705.8 | V183: 35.42830751
A184: Муниципальная программа МО Красноуфимский округ "Развитие и модернизация жилищно-коммунального хозяйства и дорожного хозяйства, повышение энергетической эффективности в МО Красноуфимский округ до 2020 года" | B184: 901 | C184: 0502 | D184: 0900000000 | E184: 000 | F184: 000 | L184: 46759027 | M184: 46759027 | N184: 0 | O184: 46759027 | P184: 0 | Q184: 46759027 | R184: 0 | S184: 9431000 | T184: 9431000 | U184: 8227938.36 | V184: 17.59647043
A185: Подпрограмма "Комплексное развитие и модернизация системы коммунальной инфраструктуры МО Красноуфимский округ" | B185: 901 | C185: 0502 | D185: 0910000000 | E185: 000 | F185: 000 | L185: 6250700 | M185: 6250700 | N185: 0 | O185: 6250700 | P185: 0 | Q185: 6250700 | R185: 0 | S185: 3350700 | T185: 3350700 | U185: 5016060.75 | V185: 80.24798423
A186: Бюджетные инвестиции в объекты жилищно-коммунального хозяйства | B186: 901 | C186: 0502 | D186: 0910123000 | E186: 000 | F186: 000 | L186: 3400000 | M186: 3400000 | N186: 0 | O186: 3400000 | P186: 0 | Q186: 3400000 | R186: 0 | S186: 0 | T186: 0 | U186: 3387152.44 | V186: 99.62213059
A187: Субсидии юридическим лицам (кроме некоммерческих организаций), индивидуальным предпринимателям, физическим лицам - производителям товаров, работ, услуг | B187: 901 | C187: 0502 | D187: 0910123000 | E187: 810 | F187: 000 | L187: 3400000 | M187: 3400000 | N187: 0 | O187: 3400000 | P187: 0 | Q187: 3400000 | R187: 0 | S187: 0 | T187: 0 | U187: 3387152.44 | V187: 99.62213059
A188: Расходы в сфере коммунального хозяйства за счет субсидий на стимулирование муниципальных образований | B188: 901 | C188: 0502 | D188: 0910140500 | E188: 000 | F188: 000 | L188: 500000 | M188: 500000 | N188: 0 | O188: 500000 | P188: 0 | Q188: 500000 | R188: 0 | S188: 0 | T188: 0 | U188: 500000 | V188: 100
A189: Субсидии юридическим лицам (кроме некоммерческих организаций), индивидуальным предпринимателям, физическим лицам - производителям товаров, работ, услуг | B189: 901 | C189: 0502 | D189: 0910140500 | E189: 810 | F189: 000 | L189: 500000 | M189: 500000 | N189: 0 | O189: 500000 | P189: 0 | Q189: 500000 | R189: 0 | S189: 0 | T189: 0 | U189: 500000 | V189: 100
A190: Разработка проектной документации на объекты строительства и реконструкции коммунальной инфраструктуры | B190: 901 | C190: 0502 | D190: 0910223000 | E190: 000 | F190: 000 | L190: 2350700 | M190: 2350700 | N190: 0 | O190: 2350700 | P190: 0 | Q190: 2350700 | R190: 0 | S190: 3350700 | T190: 3350700 | U190: 1128908.31 | V190: 48.02434636
A191: Иные закупки товаров, работ и услуг для обеспечения государственных (муниципальных) нужд | B191: 901 | C191: 0502 | D191: 0910223000 | E191: 240 | F191: 000 | L191: 2350700 | M191: 2350700 | N191: 0 | O191: 2350700 | P191: 0 | Q191: 2350700 | R191: 0 | S191: 3350700 | T191: 3350700 | U191: 1128908.31 | V191: 48.02434636
A192: Подпрограмма "Энергосбережение и повышение энергетической эффективности МО Красноуфимский округ" | B192: 901 | C192: 0502 | D192: 0930000000 | E192: 000 | F192: 000 | L192: 40508327 | M192: 40508327 | N192: 0 | O192: 40508327 | P192: 0 | Q192: 40508327 | R192: 0 | S192: 6080300 | T192: 6080300 | U192: 3211877.61 | V192: 7.928931772
A193: Модернизация систем и объектов коммунальной инфраструктуры, наружного освещения населенных пунктов | B193: 901 | C193: 0502 | D193: 0930123000 | E193: 000 | F193: 000 | L193: 21749471.8 | M193: 21749471.8 | N193: 0 | O193: 21749471.8 | P193: 0 | Q193: 21749471.8 | R193: 0 | S193: 1480300 | T193: 1480300 | U193: 2600877.61 | V193: 11.95834839
A194: Бюджетные инвестиции | B194: 901 | C194: 0502 | D194: 0930123000 | E194: 410 | F194: 000 | L194: 21749471.8 | M194: 21749471.8 | N194: 0 | O194: 21749471.8 | P194: 0 | Q194: 21749471.8 | R194: 0 | S194: 1480300 | T194: 1480300 | U194: 2600877.61 | V194: 11.95834839
A195: Модернизация систем и объектов коммунальной инфраструктуры, наружного освещения населенных пунктов за счет средств областного бюджета | B195: 901 | C195: 0502 | D195: 0930142Б00 | E195: 000 | F195: 000 | L195: 14047500 | M195: 14047500 | N195: 0 | O195: 14047500 | P195: 0 | Q195: 14047500 | R195: 0 | S195: 0 | T195: 0 | U195: 0 | V195: 0
A196: Бюджетные инвестиции | B196: 901 | C196: 0502 | D196: 0930142Б00 | E196: 410 | F196: 000 | L196: 14047500 | M196: 14047500 | N196: 0 | O196: 14047500 | P196: 0 | Q196: 14047500 | R196: 0 | S196: 0 | T196: 0 | U196: 0 | V196: 0
A197: Разработка проектной документации | B197: 901 | C197: 0502 | D197: 0930323000 | E197: 000 | F197: 000 | L197: 3711355.2 | M197: 3711355.2 | N197: 0 | O197: 3711355.2 | P197: 0 | Q197: 3711355.2 | R197: 0 | S197: 3600000 | T197: 3600000 | U197: 591000 | V197: 15.92410233
A198: Иные закупки товаров, работ и услуг для обеспечения государственных (муниципальных) нужд | B198: 901 | C198: 0502 | D198: 0930323000 | E198: 240 | F198: 000 | L198: 3711355.2 | M198: 3711355.2 | N198: 0 | O198: 3711355.2 | P198: 0 | Q198: 3711355.2 | R198: 0 | S198: 3600000 | T198: 3600000 | U198: 591000 | V198: 15.92410233
A199: Экспериза проектной документации сетей уличного освещения | B199: 901 | C199: 0502 | D199: 0930423000 | E199: 000 | F199: 000 | L199: 1000000 | M199: 1000000 | N199: 0 | O199: 1000000 | P199: 0 | Q199: 1000000 | R199: 0 | S199: 1000000 | T199: 1000000 | U199: 20000 | V199: 2
A200: Иные закупки товаров, работ и услуг для обеспечения государственных (муниципальных) нужд | B200: 901 | C200: 0502 | D200: 0930423000 | E200: 240 | F200: 000 | L200: 1000000 | M200: 1000000 | N200: 0 | O200: 1000000 | P200: 0 | Q200: 1000000 | R200: 0 | S200: 1000000 | T200: 1000000 | U200: 20000 | V200: =U200/L200*100 -> 2
A201: Муниципальная программа МО Красноуфимский округ "Устойчивое развитие сельских территорий муниципального образования Красноуфимский округ до 2020 года" | B201: 901 | C201: 0502 | D201: 1100000000 | E201: 000 | F201: 000 | L201: 17606751.11 | M201: 17606751.11 | N201: 0 | O201: 17606751.11 | P201: 0 | Q201: 17606751.11 | R201: 0 | S201: 8266500 | T201: 8266500 | U201: 14575767.44 | V201: 82.78510526
A202: Подпрограмма "Развитие газификации МО Красноуфимский округ до 2020 года" | B202: 901 | C202: 0502 | D202: 1110000000 | E202: 000 | F202: 000 | L202: 17606751.11 | M202: 17606751.11 | N202: 0 | O202: 17606751.11 | P202: 0 | Q202: 17606751.11 | R202: 0 | S202: 8266500 | T202: 8266500 | U202: 14575767.44 | V202: 82.78510526
... 428 more rows
